Workbook

Sheet от 3 до 7 лет
A1: Утверждаю | H1: Согласовано
A2: Директор ООО"АБК - Пэймент" | H2: Руководитель дошкольной образовательной
A3: Рахматуллин Р.Р. | H3: организации
C8: Примерное 12-дневное меню
C9: для организации питания детей в дошкольных учреждениях
C10: с 8-10,5 - часовым пребыванием от 3 до 7 лет
A12: День 1 - ый
A13: Наименование блюд и | C13: Масса | D13: Кол - во | E13: Кол - во | F13: Пищевые вещества | I13: Энергетическая | J13: Витамин | K13: Сборник рецептур
A14: продуктов | C14: порции | D14: (в гр ) | E14: (в гр ) | I14: ценность
D15: брутто | E15: нетто | F15: белки | G15: жиры | H15: угл-ды | I15: Ккал | J15: С
B16: ЗАВТРАК
A17: Каша "Дружба" молочная с маслом сливочным | C17: 200/5 | F17: 5.20 | G17: 7.10 | H17: 23.20 | I17: 177.50 | J17: 0.21 | K17: ТТК №7Д
B18: Крупа рисовая | D18: 15.00 | E18: 15.00
B19: Крупа пшенная | D19: 11.00 | E19: 11.00
B20: Молоко | D20: 100.00 | E20: 100.00
B21: Вода | D21: 76.00 | E21: 76.00
B22: Сахар | D22: 5.00 | E22: 5.00
B23: соль иодированная | D23: 1.00 | E23: 1.00
B24: Масло сливочное | D24: 5.00 | E24: 5.00
A25: Кофейный напиток с молоком | C25: 180 | F25: 2.85 | G25: 2.41 | H25: 14.36 | I25: 91.00 | J25: 0.19 | K25: №395 Дели2010
B26: Кофейный напиток | D26: 2.50 | E26: 2.50
B27: Сахар | D27: 10.00 | E27: 10.00
B28: Молоко | D28: 90.00 | E28: 90.00
B29: Вода | D29: 108.00 | E29: 108.00
A30: Бутерброд с маслом сливочным | C30: 30/5 | F30: 2.30 | G30: 4.50 | H30: 15.40 | I30: 111.00 | K30: №1 Дели2010
B31: Батон нарезной | D31: 30.00 | E31: 30.00
B32: Масло сливочное | D32: 5.00 | E32: 5.00
A33: Итого: | C33: 420 | F33: =F17+F25+F30 -> 10.35 | G33: =G17+G25+G30 -> 14.01 | H33: 52.96 | I33: 379.50 | J33: 0.40
B34: 2 - ой ЗАВТРАК
A35: Сок (или нектар) | C35: 200 | D35: 200 | E35: 200 | F35: 1.00 | G35: 0.00 | H35: 20.20 | I35: 85.34 | J35: 4.00 | K35: №418 сб дошк 2016
A36: в ассортименте
A37: Кондитерские изделия | B37: печенье | C37: 30 | D37: 30.00 | E37: 30.00 | F37: 2.26 | G37: 2.94 | H37: 22.32 | I37: 125.10 | K37: табл 6 стр 136,Ддели +,2012
A38: Итого: | C38: 230 | F38: =F35+F37 -> 3.26 | G38: =G35+G37 -> 2.94 | H38: 42.52 | I38: 210.44 | J38: 4.00
B39: ОБЕД
A40: Салат из отварной моркови с сахаром | C40: 60 | F40: 0.75 | G40: 0.06 | H40: 6.97 | I40: 31.40 | K40: №42 СБ дошк 2016
B41: морковь | D41: 78.30 | E41: 58.00
B42: сахар | D42: 3.00 | E42: 3.00
A43: Суп со звездочами с картофелем с мясными фрикадельками | C43: 200/15 | F43: 5.01 | G43: 22.51 | H43: 13.83 | I43: 109.39 | J43: 5.28 | K43: №140,сбшк2004
B44: говядина б/к (котлетное мясо) | D44: 17.85 | E44: 17.1
B45: Лук репчатый | D45: 1.79 | E45: 1.5
B46: Яйцо | D46: 1.44 | E46: 1.2
B47: Вода для фарша | D47: 1.5 | E47: 1.5
B48: соль иодированная | D48: 1.2 | E48: 1.2
B49: Масса полуфабриката | E49: 21.5
B50: масса готовых фрикаделек | E50: 15
B51: Картофель | D51: 79.80 | E51: 60.00
B52: Морковь | D52: 10.00 | E52: 8.00
B53: Лук репчатый | D53: 9.52 | E53: 8.00
B54: суповая засыпка (звездочки) | D54: 8.00 | E54: 8.00
B55: Масло растительное | D55: 4.00 | E55: 4.00
B56: соль иодированная | D56: 1.20 | E56: 1.20
B57: Вода | D57: 152.00 | E57: 152.00
A58: Котлеты рубленые из говядины | C58: 70 | F58: 10.43 | G58: 7.70 | H58: 10.19 | I58: 151.38 | K58: СБ дошкольн. №299, 2016
B59: говядина б/к (котлетное мясо) | D59: 51.16 | E59: 49
B60: Лук репчатый | D60: 14.64 | E60: 12.3
B61: Хлеб пшеничный | D61: 11 | E61: 11
B62: Вода | D62: 14.7 | E62: 14.7
B63: Сухари панировочные | D63: 4.00 | E63: 4.00
B64: соль иодированная | D64: 0.7 | E64: 0.7
B65: масса полуфабриката | E65: 75.3
A66: Капуста тушеная | C66: 150 | F66: 3.30 | G66: 4.90 | H66: 14.10 | I66: 114.60 | J66: 24.70 | K66: №534сб шк2004
B67: Капуста свежая | D67: 215.00 | E67: 172.00
B68: Лук репчатый | D68: 7.14 | E68: 6.00
B69: Морковь | D69: 3.75 | E69: 3.00
B70: Мука пшеничная | D70: 2.00 | E70: 2.00
B71: Масло сливочное | D71: 2.00 | E71: 2.00
B72: Масло растительное | D72: 2.00 | E72: 2.00
B73: Томат-паста | D73: 1.20 | E73: 1.20
B74: Сахар | D74: 4.50 | E74: 4.50
B75: соль иодированная | D75: 1.00 | E75: 1.00
A76: Компот из сухофруктов | C76: 180 | F76: 0.40 | G76: 0.02 | H76: 25.00 | I76: 101.70 | J76: 0.36 | K76: №394 сб дошк 2016
B77: сухофрукты | D77: 18.00 | E77: 18.00
B78: масса вареных сухофруктов | E78: 45.00
B79: Сахар | D79: 10.00 | E79: 10.00
B80: Вода | D80: 183.00 | E80: 183.00
A81: Хлеб пшеничный | C81: 20 | D81: 20.00 | E81: 20.00 | F81: 1.52 | G81: 0.16 | H81: 9.84 | I81: 47.00 | J81: 0.00 | K81: табл 6 стр 134,Дели + 2012
A82: Хлеб ржано - пшеничный | C82: 45 | D82: 45.00 | E82: 45.00 | F82: 2.98 | G82: 0.54 | H82: 17.82 | I82: 89.10 | K82: табл 6 стр 144,Дели + 2012
A83: Итого: | C83: 740 | F83: =F40+F43+F58+F66+F76+F81+F82 -> 24.39 | G83: =G40+G43+G58+G66+G76+G81+G82 -> 35.89 | H83: 97.75 | I83: 644.57 | J83: 30.34
B84: ПОЛДНИК
A85: Кисломолочный напиток | C85: 180/5 | F85: 5.22 | G85: 4.50 | H85: 12.19 | I85: 109.95 | J85: 1.26 | K85: №420 СБ дошк 2016
A86: (Кефир,ряженка,катык,йогурт) | B86: кисломолочный напиток | D86: 185.00 | E86: 180.00
B87: сахар | D87: 5.00 | E87: 5.00
A88: Булочка дорожная | C88: 50 | F88: 3.39 | G88: 6.98 | H88: 26.07 | I88: 181.00 | K88: №453 сб дошк2016
B89: Мука пшеничная | D89: 30.50 | E89: 30.00
B90: мука пшеничная на подпыл | D90: 1.00 | E90: 1.00
B91: Сахар | D91: 6.00 | E91: 6.00
B92: Масло сливочное | D92: 6.50 | E92: 6.50
B93: соль иодированная | D93: 0.30 | E93: 0.30
B94: дрожжи сухие | D94: 0.20 | E94: 0.20
B95: вода | D95: 15.30 | E95: 15.30
B96: масса полуфабриката | E96: 57.00
B97: для крошки:
B98: мука пшеничная | D98: 1.20 | E98: 1.20
B99: масло сливочное | D99: 1.00 | E99: 1.00
B100: масса крошки | E100: 2.00
B101: масло растительное для смазки изделй | D101: 1.00 | E101: 1.00
A102: Итого: | C102: 235.00 | F102: =F85+F88 -> 8.61 | G102: =G85+G88 -> 11.48 | H102: 38.26 | I102: 290.95 | J102: 1.26
A103: ВСЕГО: | C103: =C33+C38+C83+C102 -> 1625.00 | F103: =F33+F38+F83+F102 -> 46.61 | G103: 64.32 | H103: 231.49 | I103: 1525.46 | J103: 36.00
A105: День 2- ой
A106: Наименование блюд и | C106: Масса | D106: Кол - во | E106: Кол - во | F106: Пищевые вещества | I106: Энергетическая | J106: Витамин | K106: Сборник
A107: продуктов | C107: порции | D107: (в гр ) | E107: (в гр ) | I107: ценность | K107: рецептур
D108: брутто | E108: нетто | F108: белки | G108: жиры | H108: угл-ды | I108: Ккал | J108: С
B109: ЗАВТРАК
A110: Каша полбяная молочная с маслом сливочным | C110: 200/5 | F110: 5.89 | G110: 5.42 | H110: 25.84 | I110: 176.00 | J110: 0.21 | K110: ТТК №1Д
B111: крупа полбяная | D111: 25.00 | E111: 25.00
B112: Молоко | D112: 100.00 | E112: 100.00
B113: вода | D113: 76.00 | E113: 76.00
B114: Сахар | D114: 5.00 | E114: 5.00
B115: соль иодированная | D115: 1.00 | E115: 1.00
B116: Масло сливочное | D116: 5.00 | E116: 5.00
A117: Чай с сахаром с курагой | C117: 180/10/5 | F117: 0.36 | G117: 0.04 | H117: 12.55 | I117: 51.60 | J117: 0.20 | K117: № 392 Дели 2010
B118: чай весовой | D118: 0.50 | E118: 0.50
B119: сахар | D119: 10.00 | E119: 10.00
B120: Вода | D120: 180.00 | E120: 180.00
B121: курага | D121: 5.00 | E121: 5.00
A122: Бутерброд с сыром, маслом сливочным | C122: 30/10/5 | F122: 5.59 | G122: 8.00 | H122: 15.40 | I122: 156.40 | J122: 0.21 | K122: №3 сб дошк2016
B123: Батон нарезной | D123: 30.00 | E123: 30.00
B124: Сыр | D124: 10.20 | E124: 10.00
B125: Масло сливочное | D125: 5.00 | E125: 5.00
A126: Итого: | C126: 445 | F126: =F110+F117+F122 -> 11.84 | G126: =G110+G117+G122 -> 13.46 | H126: 53.79 | I126: 384.00 | J126: 0.62
B127: 2 - ой ЗАВТРАК
A128: Фрукты свежие | C128: 100 | D128: 114 | E128: 100 | F128: 0.40 | G128: 0.40 | H128: 9.80 | I128: 44.00 | J128: 10.00 | K128: №386 СБ
A129: (яблоки,или апельсин, или банан,или мандарин ) | K129: дошк.2016
A130: Итого: | C130: 100 | F130: =F128 -> 0.40 | G130: =G128 -> 0.40 | H130: 9.80 | I130: 44.00 | J130: 10.00
B131: ОБЕД
A132: Салат из картофеля с солеными огурцами | C132: 60 | F132: 0.82 | G132: 3.13 | H132: 5.14 | I132: 51.96 | J132: 7.20 | K132: №23 сб дошк2016
B133: огурцы соленые | D133: 32.76 | E133: 18.00
B134: картофель | D134: 32.90 | E134: 24.00
B135: морковь | D135: 15.36 | E135: 12.00
B136: лук репчатый | D136: 3.60 | E136: 3.00
B137: масло растительное | D137: 3.00 | E137: 3.00
A138: Борщ со свежей капустой, картофелем с мясом птицы,со сметаной | C138: 200/10/7 | F138: 3.61 | G138: 5.26 | H138: 9.50 | I138: 99.67 | J138: 6.36 | K138: №110, сб шк2004
B139: цыплята-бройлеры потрош с/м | D139: 29.50 | E139: 26.2
B140: масса отварной мякоти птицы | E140: 10.00
B141: Капуста свежая | D141: 20.00 | E141: 16.00
B142: Картофель | D142: 21.28 | E142: 16.00
B143: Морковь | D143: 12.50 | E143: 10.00
B144: Лук репчатый | D144: 9.52 | E144: 8.00
B145: Свекла | D145: 41.00 | E145: 32.00
B146: Сахар | D146: 2.40 | E146: 2.40
B147: Томат-паста | D147: 1.00 | E147: 1.00
B148: Масло растительное | D148: 4.00 | E148: 4.00
B149: соль иодированная | D149: 2.00 | E149: 2.00
B150: Бульон | D150: 160.00 | E150: 160.00
B151: Сметана | D151: 7.00 | E151: 7.00
A152: Пудинг рыбный | C152: 80/30 | F152: 14.60 | G152: 9.00 | H152: 10.80 | I152: 182.00 | K152: №286 СБ дошк 2016
B153: рыба (минтай с/м БГ) | D153: 84 | E153: 67
B154: масса отварной рыбы | E154: 53
B155: Хлеб пшеничный | D155: 11 | E155: 11
B156: яйцо | D156: 8.4 | E156: 7
B157: молоко | D157: 16 | E157: 16
B158: масло сливочное | D158: 3 | E158: 3
B159: соль иодированная | D159: 0.5 | E159: 0.5
B160: Масло растительное | D160: 1.3 | E160: 1.3
B161: Соус молочный
B162: молоко | D162: 15 | E162: 15
B163: масло сливочное | D163: 1.65 | E163: 1.65
B164: Мука пшеничная | D164: 1.65 | E164: 1.65
B165: Вода | D165: 15 | E165: 15
B166: Сахар | D166: 0.3 | E166: 0.3
B167: соль иодированная | D167: 0.2 | E167: 0.2
B168: масса соуса | E168: 30
A169: Пюре Картофельное | C169: 140 | F169: 2.86 | G169: 4.48 | H169: 19.07 | I169: 128.10 | J169: 0.23 | K169: № 339 СБ дошк 2016
B170: Картофель | D170: 159.60 | E170: 119.70
B171: Молоко | D171: 22.12 | E171: 21.00
B172: Масло сливочное | D172: 5.00 | E172: 5.00
B173: соль иодированная | D173: 0.52 | E173: 0.52
A174: Компот из черной смородины замороженной | C174: 180 | F174: 0.18 | G174: 0.1 | H174: 19.3 | I174: 80 | J174: 36 | K174: ТТК 538 от 23.12.2020
B175: черная смородина с/м | D175: 18.00 | E175: 18.00
B176: вода | D176: 183.00 | E176: 183.00
B177: Сахар | D177: 10.00 | E177: 10.00
A178: Хлеб пшеничный | C178: 20 | D178: 20.00 | E178: 20.00 | F178: 1.52 | G178: 0.16 | H178: 9.84 | I178: 47.00 | J178: 0.00 | K178: табл 6 стр 134,Дели + 2012
A179: Хлеб ржано - пшеничный | C179: 45 | D179: 45.00 | E179: 45.00 | F179: 2.98 | G179: 0.54 | H179: 17.82 | I179: 89.10 | K179: табл 6 стр 144,Дели + 2012
A180: Итого: | C180: 772 | F180: =F132+F138+F152+F169+F174+F178+F179 -> 26.57 | G180: =G132+G138+G152+G169+G174+G178+G179 -> 22.64 | H180: 91.49 | I180: 678.23 | J180: 49.79
B181: ПОЛДНИК
A182: Запеканка творожная с повидлом | C182: 120/30 | F182: 21.17 | G182: 14.47 | H182: 40.09 | I182: 372.60 | J182: 0.44 | K182: №251, сбдошк 2016
B183: Творог | D183: 112.20 | E183: 110.00
B184: Крупа манная | D184: 7.20 | E184: 7.20
B185: Яйцо | D185: 6.00 | E185: 5.00
B186: Сахар | D186: 9.60 | E186: 9.60
B187: Сметана | D187: 4.80 | E187: 4.80
B188: Масло сливочное | D188: 4.80 | E188: 4.80
B189: Сухари панировочные | D189: 4.80 | E189: 4.80
B190: соль иодированная | D190: 0.60 | E190: 0.60
B191: повидло | D191: 30.00 | E191: 30.00
A192: Кисель | C192: 180 | H192: 18.00 | I192: 72.00 | K192: № 648, сб шк2004
B193: Кисель-концентрат | D193: 21.00 | E193: 21.00
B194: Сахар | D194: 9.00 | E194: 9.00
B195: вода | D195: 180.00 | E195: 180.00
A196: Итого: | C196: 330 | F196: =F182+F192 -> 21.17 | G196: =G182+G192 -> 14.47 | H196: 58.09 | I196: 444.60 | J196: 0.44
A197: ВСЕГО: | C197: =C126+C130+C180+C196 -> 1647.00 | F197: =F126+F130+F180+F196 -> 59.98 | G197: =G126+G130+G180+G196 -> 50.97 | H197: =H126+H130+H180+H196 -> 213.17 | I197: =I126+I130+I180+I196 -> 1550.83 | J197: =J126+J130+J180+J196 -> 60.85
A199: День 3 - ий
A200: Наименование блюд и | C200: Масса | D200: Кол - во | E200: Кол - во | F200: Пищевые вещества | I200: Энергетическая | J200: Витамин | K200: Сборник
A201: продуктов | C201: порции | D201: (в гр ) | E201: (в гр ) | I201: ценность | K201: рецептур
D202: брутто | E202: нетто | F202: белки | G202: жиры | H202: угл-ды | I202: Ккал | J202: С
B203: ЗАВТРАК
A204: Каша рисовая молочная с маслом сливочным | C204: 200/5 | F204: 5.70 | G204: 7.80 | H204: 39.80 | I204: 253.00 | J204: 0.21 | K204: ТТК №8Д
B205: крупа рисовая | D205: 25.00 | E205: 25.00
B206: Молоко | D206: 100.00 | E206: 100.00
B207: Вода | D207: 76.00 | E207: 76.00
... 865 more rows

Sheet от 1 года до 3 лет
A1: Утверждаю | H1: Согласовано
A2: Директор ООО"АБК - Пэймент" | H2: Руководитель дошкольной образовательной
A3: Рахматуллин Р.Р. | H3: организации
E6: Примерное 12-дневное меню
E7: для организации питания детей в дошкольных учреждениях
E8: с 8-10,5 - часовым пребыванием от 1 до 3 лет
A10: День 1 - ый
A11: Наименование блюд и | C11: Масса | D11: Кол - во | E11: Кол - во | F11: Пищевые вещества | I11: Энергетическая | J11: витамин | K11: Сборник
A12: продуктов | C12: порции | D12: (в гр ) | E12: (в гр ) | I12: ценность | K12: рецептур
D13: брутто | E13: нетто | F13: белки | G13: жиры | H13: угл-ды | I13: Ккал | J13: С
A15: Каша "Дружба" молочная с маслом сливочным | C15: 150/4 | F15: 3.60 | G15: 5.30 | H15: 17.00 | I15: 130.00 | J15: 0.21 | K15: ТТК №7Д
B16: Крупа рисовая | D16: 11 | E16: 11
B17: Крупа пшенная | D17: 8 | E17: 8
B18: Молоко | D18: 80 | E18: 80
B19: Вода | D19: 52 | E19: 52
B20: Сахар | D20: 4 | E20: 4
B21: соль иодированная | D21: 0.8 | E21: 0.8
B22: Масло сливочное | D22: 4 | E22: 4
A23: Кофейный напиток с молоком | C23: 165 | F23: 2.57 | G23: 2.2 | H23: 11.69 | I23: 77 | J23: 0.16 | K23: №395Дели2010
B24: Кофейный напиток | D24: 2 | E24: 2
B25: Сахар | D25: 7.7 | E25: 7.7
B26: Молоко | D26: 75 | E26: 75
B27: вода | D27: 106 | E27: 106
A28: Бутерброд с маслом сливочным | C28: 25/5 | F28: 1.9 | G28: 4.4 | H28: 13 | I28: 99 | K28: №1 Дели2010
B29: Батон нарезной | D29: 25 | E29: 25
B30: Масло сливочное | D30: 5 | E30: 5
A31: Итого: | C31: 349 | F31: =F15+F23+F28 -> 8.07 | G31: =G15+G23+G28 -> 11.90 | H31: =H15+H23+H28 -> 41.69 | I31: =I15+I23+I28 -> 306.00 | J31: =J15+J23+J28 -> 0.37
B32: 2 - ой ЗАВТРАК
A33: Сок | C33: 200 | D33: 200 | E33: 200 | F33: 1.00 | G33: 0.00 | H33: 20.20 | I33: 85.34 | J33: 4.00 | K33: №418 сб дошк 2016
A34: в ассортименте в инд.упаковке
A35: Кондитерские изделия | B35: печенье | C35: 20 | D35: 20.00 | E35: 20.00 | F35: 1.50 | G35: 1.96 | H35: 14.88 | I35: 83.40 | K35: табл 6 стр 136,Ддели +,2012
A36: Итого: | C36: 220 | F36: =F33+F35 -> 2.50 | G36: =G33+G35 -> 1.96 | H36: 35.08 | I36: 168.74 | J36: 4.00
B37: ОБЕД
A38: Салат из отварной моркови с сахаром | C38: 40 | F38: 0.50 | G38: 0.04 | H38: 4.65 | I38: 20.93 | K38: №42 СБ дошк 2016
B39: морковь | D39: 51.30 | E39: 38.00
B40: сахар | D40: 2.00 | E40: 2.00
A41: Суп со звездочами с картофелем с мясными фрикадельками | C41: 150/10 | F41: 5.01 | G41: 22.51 | H41: 13.83 | I41: 109.39 | J41: 5.28 | K41: 140сбшк2004
B42: говядина б/к (котлетное мясо) | D42: 11.9 | E42: 114
B43: Лук репчатый | D43: 1.19 | E43: 1
B44: Яйцо | D44: 0.96 | E44: 0.8
B45: Вода для фарша | D45: 1 | E45: 1
B46: соль иодированная | D46: 1 | E46: 1
B47: Масса полуфабриката | E47: 14.3
B48: масса готовых фрикаделек | E48: 10
B49: Картофель | D49: 59.90 | E49: 45.00
B50: Морковь | D50: 7.50 | E50: 6.00
B51: Лук репчатый | D51: 7.14 | E51: 6.00
B52: суповая засыпка (звездочки) | D52: 6.00 | E52: 6.00
B53: Масло растительное | D53: 3.00 | E53: 3.00
B54: соль иодированная | D54: 1.00 | E54: 1.00
B55: Вода | D55: 114.00 | E55: 114.00
A56: Котлеты рубленные из говядины | C56: 50 | F56: 7.45 | G56: 5.50 | H56: 7.28 | I56: 108.13 | K56: СБ дошкольн. №299, 2016
B57: говядина б/к (котлетное мясо) | D57: 36.57 | E57: 35
B58: лук репчатый | D58: 10.4 | E58: 8.75
B59: Хлеб пшеничный | D59: 8.13 | E59: 8.13
B60: Вода | D60: 5.2 | E60: 5.2
B61: сухари панировочные | D61: 2.8 | E61: 2.8
B62: соль иодированная | D62: 0.4 | E62: 0.4
B63: масса полуфабриката | E63: 61.9
B64: Масло растительное | D64: 0.60 | E64: 0.60
A65: Капуста тушеная | C65: 120 | F65: 2.48 | G65: 3.88 | H65: 11.31 | I65: 90.12 | J65: 20.59 | K65: №354 сбдошк2016
B66: Капуста свежая | D66: 172 | E66: 137.5
B67: Лук репчатый | D67: 6 | E67: 5
B68: Морковь | D68: 5 | E68: 4
B69: томатная паста | D69: 1 | E69: 1
B70: Мука пшеничная | D70: 1.44 | E70: 1.44
B71: Масло растительное | D71: 1.5 | E71: 1.5
B72: Масло сливочное | D72: 2.5 | E72: 2.5
B73: Сахар | D73: 3.6 | E73: 3.6
B74: соль иодированная | D74: 0.8 | E74: 0.8
A75: Компот из сухофруктов | C75: 150 | F75: 0.33 | G75: 0.02 | H75: 20.83 | I75: 84.75 | J75: 0.24 | K75: №394 сб дошк2016
B76: сухофрукты | D76: 15 | E76: 15
B77: масса вареных сухофруктов | E77: 37.5
B78: вода | D78: 153 | E78: 153
B79: Сахар | D79: 8 | E79: 8
A80: Хлеб пшеничный | C80: 15 | D80: 15.00 | E80: 15.00 | F80: 1.14 | G80: 0.12 | H80: 7.38 | I80: 35.25 | J80: 0.00 | K80: табл 6 стр 134,Дели + 2012
A81: Хлеб пшенично - ржаной | C81: 40 | D81: 40 | E81: 40 | F81: 2.64 | G81: 0.48 | H81: 15.84 | I81: 79.2 | K81: табл 6 стр 144,Дели + 2012
A82: Итого: | C82: 575.00 | F82: =F38+F41+F56+F65+F75+F80+F81 -> 19.55 | G82: =G38+G41+G56+G65+G75+G80+G81 -> 32.55 | H82: =H38+H41+H56+H65+H75+H80+H81 -> 81.12 | I82: =I38+I41+I56+I65+I75+I80+I81 -> 527.77 | J82: =J38+J41+J56+J65+J75+J80+J81 -> 26.11
B83: ПОЛДНИК
A84: Кисломолочный напиток | C84: 150/5 | F84: 4.35 | G84: 3.75 | H84: 10.99 | I84: 94.95 | J84: 1.05 | K84: №420 Сб дошк 2016
A85: (Кефир,ряженка,катык,йогурт) | B85: кисломолочный напиток | D85: 155 | E85: 150
B86: сахар | D86: 5 | E86: 5
A87: Булочка дорожная | C87: 35 | F87: 2.73 | G87: 4.90 | H87: 18.25 | I87: 126.70 | K87: №453 сб дошк2016
B88: Мука пшеничная | D88: 21.35 | E88: 21.00
B89: мука пшеничная на подпыл | D89: 0.70 | E89: 0.70
B90: Сахар | D90: 4.20 | E90: 4.20
B91: Масло сливочное | D91: 4.55 | E91: 4.55
B92: соль иодированная | D92: 0.21 | E92: 0.21
B93: дрожжи сухие | D93: 0.14 | E93: 0.14
B94: вода | D94: 10.70 | E94: 10.70
B95: масса полуфабриката | E95: 39.90
B96: для крошки:
B97: мука пшеничная | D97: 0.84 | E97: 0.84
B98: масло сливочное | D98: 0.70 | E98: 0.70
B99: масса крошки | E99: 1.40
B100: масло растительное для смазки изделй | D100: 0.70 | E100: 0.70
A101: Итого: | C101: 190.00 | F101: =F84+F87 -> 7.08 | G101: =G84+G87 -> 8.65 | H101: =H84+H87 -> 29.24 | I101: =I84+I87 -> 221.65 | J101: =J84+J87 -> 1.05
A102: ВСЕГО: | C102: =C31+C36+C82+C101 -> 1334.00 | F102: =F31+F36+F82+F101 -> 37.20 | G102: =G31+G36+G82+G101 -> 55.06 | H102: =H31+H36+H82+H101 -> 187.13 | I102: =I31+I36+I82+I101 -> 1224.16 | J102: =J31+J36+J82+J101 -> 31.53
A104: День 2- ой
A105: Наименование блюд и | C105: Масса | D105: Кол - во | E105: Кол - во | F105: Пищевые вещества | I105: Энергетическая | J105: Витамин | K105: Сборник
A106: продуктов | C106: порции | D106: (в гр ) | E106: (в гр ) | I106: ценность | K106: рецептур
D107: брутто | E107: нетто | F107: белки | G107: жиры | H107: угл-ды | I107: Ккал | J107: С
B108: ЗАВТРАК
A109: Каша полбяная молочная с маслом сливочным | C109: 150/4 | F109: 4.20 | G109: 3.80 | H109: 18.00 | I109: 123.00 | J109: 0.16 | K109: ТТК №1Д
B110: крупа полбяная | D110: 19 | E110: 19
B111: Молоко | D111: 80 | E111: 80
B112: вода | D112: 52 | E112: 52
B113: Сахар | D113: 4 | E113: 4
B114: соль иодированная | D114: 0.8 | E114: 0.8
B115: Масло сливочное | D115: 4 | E115: 4
A116: Чай с сахаром,с курагой | C116: 150/8/5 | F116: 0.066 | G116: 0.025 | H116: 9.54 | I116: 39.6 | J116: 0.06 | K116: №392 Дели2010
B117: чай весовой | D117: 0.45 | E117: 0.45
B118: Сахар | D118: 8 | E118: 8
B119: Вода | D119: 150 | E119: 150
B120: курага | D120: 5 | E120: 5
A121: Бутерброд с сыром, маслом сливочным | C121: 25/5/5 | F121: 3.50 | G121: 5.95 | H121: 12.90 | I121: 119.60 | J121: 0.04 | K121: №3Дели2010
B122: Батон нарезной | D122: 25 | E122: 25
B123: Сыр | D123: 5.1 | E123: 5
B124: Масло сливочное | D124: 5 | E124: 5
A125: Итого: | C125: 352 | F125: =F109+F116+F121 -> 7.77 | G125: =G109+G116+G121 -> 9.78 | H125: =H109+H116+H121 -> 40.44 | I125: =I109+I116+I121 -> 282.20 | J125: =J109+J116+J121 -> 0.26
B126: 2 - ой ЗАВТРАК
A127: Фрукты свежие | C127: 95 | D127: 108.3 | E127: 95 | F127: 0.38 | G127: 0.38 | H127: 9.31 | I127: 41.80 | J127: 9.50 | K127: №386 СБ
A128: (яблоки,или апельсин, или банан,или мандарин ) | K128: дошк.2016
A129: Итого: | C129: 95 | F129: =F127 -> 0.38 | G129: =G127 -> 0.38 | H129: =H127 -> 9.31 | I129: =I127 -> 41.80 | J129: =J127 -> 9.50
B130: ОБЕД
A131: Салат из картофеля с солеными огурцами | C131: 40 | F131: 0.55 | G131: 2.09 | H131: 3.43 | I131: 34.64 | J131: 4.80 | K131: №23 сб дошк2016
B132: огурцы соленые | D132: 21.84 | E132: 12.00
B133: картофель | D133: 21.92 | E133: 16.00
B134: морковь | D134: 10.24 | E134: 8.00
B135: лук репчатый | D135: 2.40 | E135: 2.00
B136: масло растительное | D136: 2.00 | E136: 2.00
A137: Борщ со свежей капустой, картофелем с мясом птицы,со сметаной | C137: 150/10/6 | F137: 3.21 | G137: 4.56 | H137: 7.20 | I137: 82.67 | J137: 4.80 | K137: №110,сбшк2004
B138: цыплята-бройлеры потрош с/м | D138: 29.50 | E138: 26.2
B139: масса отварной мякоти птицы | E139: 10.00
B140: Капуста свежая | D140: 15.0 | E140: 12.0
B141: Картофель | D141: 15.96 | E141: 12.0
B142: Морковь | D142: 7.5 | E142: 6.0
B143: Лук репчатый | D143: 7.14 | E143: 6.0
B144: Свекла | D144: 30.72 | E144: 24.0
B145: Сахар | D145: 1.8 | E145: 1.8
B146: Масло растительное | D146: 3.0 | E146: 3.0
B147: соль иодированная | D147: 1.5 | E147: 1.5
B148: Бульон | D148: 120 | E148: 120.0
B149: Сметана | D149: 6.0 | E149: 6.0
A150: Пудинг рыбный | C150: 60/20 | F150: 11.23 | G150: 6.77 | H150: 8.12 | I150: 136.84 | K150: №286 СБ дошк 2016
B151: рыба (минтай с/м БГ) | D151: 69 | E151: 50.25
B152: масса отварной рыбы | E152: 39.75
B153: Хлеб пшеничный | D153: 8.25 | E153: 8.25
B154: яйцо | D154: 6.3 | E154: 5.25
B155: молоко | D155: 12 | E155: 12
B156: масло сливочное | D156: 2.25 | E156: 2.25
B157: соль иодированная | D157: 0.4 | E157: 0.4
B158: Масло растительное | D158: 1 | E158: 1
B159: масса пудинга | E159: 60
B160: Соус молочный
B161: молоко | D161: 10 | E161: 10
B162: масло сливочное | D162: 1.1 | E162: 1.1
B163: Мука пшеничная | D163: 1.1 | E163: 1.1
B164: Вода | D164: 10 | E164: 10
B165: Сахар | D165: 0.2 | E165: 0.2
B166: соль иодированная | D166: 0.13 | E166: 0.13
B167: масса соуса | E167: 20
A168: Пюре Картофельное | C168: 120 | F168: 2.46 | G168: 3.84 | H168: 16.35 | I168: 109.80 | J168: 0.20 | K168: № 339 СБ дошк 2016
B169: Картофель | D169: 136.80 | E169: 102.60
B170: Молоко | D170: 18.96 | E170: 18.00
B171: Масло сливочное | D171: 4.20 | E171: 4.20
B172: соль иодированная | D172: 0.45 | E172: 0.45
A173: Компот из черной смородины замороженной | C173: 150 | F173: 0.15 | G173: 0.1 | H173: 16.1 | I173: 67 | J173: 30 | K173: ТТК 538 от 23.12.2020
B174: черная смородина с/м | D174: 15.00 | E174: 15.00
B175: вода | D175: 152.00 | E175: 152.00
B176: Сахар | D176: 8.00 | E176: 8.00
A177: Хлеб пшеничный | C177: 15 | D177: 15.00 | E177: 15.00 | F177: 1.14 | G177: 0.12 | H177: 7.38 | I177: 35.25 | J177: 0.00 | K177: табл 6 стр 134,Дели + 2012
A178: Хлеб пшенично - ржаной | C178: 40 | D178: 40 | E178: 40 | F178: 2.64 | G178: 0.48 | H178: 15.84 | I178: 79.2 | K178: табл 6 стр 144,Дели + 2012
A179: Итого: | C179: 611 | F179: =F131+F137+F150+F168+F181+F177+F178 -> 21.23 | G179: =G131+G137+G150+G168+G181+G177+G178 -> 17.86 | H179: =H131+H137+H150+H168+H181+H177+H178 -> 73.32 | I179: =I131+I137+I150+I168+I181+I177+I178 -> 538.40 | J179: =J131+J137+J150+J168+J181+J177+J178 -> 9.80
B180: ПОЛДНИК
A181: Кисель | C181: 150 | H181: 15.00 | I181: 60.00 | K181: №648 сбшк2004
B182: Кисель-концентрат | D182: 17.50 | E182: 17.50
B183: Сахар | D183: 7.00 | E183: 7.00
B184: вода | D184: 150.00 | E184: 150.00
A185: Запеканка творожная с повидлом | C185: 110/20 | F185: 19.37 | G185: 13.26 | H185: 31.87 | I185: 321.70 | J185: 0.36 | K185: № 251 сб дошк 2016
B186: Творог | D186: 103.2 | E186: 101.2
B187: крупа манная | D187: 6.6 | E187: 6.6
B188: Яйцо | D188: 5.28 | E188: 4.4
B189: Сахар | D189: 8.8 | E189: 8.8
B190: Сметана | D190: 4.4 | E190: 4.4
B191: Масло сливочное | D191: 4.4 | E191: 4.4
B192: Сухари панировочные | D192: 4.4 | E192: 4.4
B193: соль иодированная | D193: 0.55 | E193: 0.55
B194: повидло | D194: 20 | E194: 20
A195: ИТОГО: | C195: 280.00 | F195: =F181+F185 -> 19.37 | G195: =G181+G185 -> 13.26 | H195: 46.87 | I195: 381.70 | J195: 0.36
A196: ВСЕГО: | C196: =C125+C129+C179+C195 -> 1338.00 | F196: =F125+F129+F179+F195 -> 48.75 | G196: =G125+G129+G179+G195 -> 41.28 | H196: 169.94 | I196: 1244.10 | J196: 19.92
A198: День 3 - ий
A199: Наименование блюд и | C199: Масса | D199: Кол - во | E199: Кол - во | F199: Пищевые вещества | I199: Энергетическая | J199: Витамин | K199: Сборник
A200: продуктов | C200: порции | D200: (в гр ) | E200: (в гр ) | I200: ценность | K200: рецептур
D201: брутто | E201: нетто | F201: белки | G201: жиры | H201: угл-ды | I201: Ккал | J201: С
B202: ЗАВТРАК
A203: Каша рисовая молочная с маслом сливочным | C203: 150/4 | F203: 4.28 | G203: 5.85 | H203: 29.85 | I203: 189.00 | J203: 0.15 | K203: ТТК № 8Д
B204: крупа рисовая | D204: 19 | E204: 19
B205: Молоко | D205: 75 | E205: 75
B206: Вода | D206: 57 | E206: 57
... 870 more rows
